fUST/lending_fUST_20260127
["ID","MTS","AMOUNT","RATE_DAILY","PERIOD"]
[403692551,1769485843675,-627.11817107,0.00014278,2]
[403692552,1769485843684,-1001.05879889,0.00014404,2]
[403692553,1769485843694,-15733.4732346,0.00014891,2]
[403692554,1769485843703,-500.0,0.00015094,2]
[403692555,1769485843712,-420.0,0.00015095,2]
[403692556,1769485843721,-1000.0,0.00015117,5]
[403692557,1769485843731,-800.0,0.0001513,2]
[403692558,1769485843740,-267.16206615,0.00015168,2]
[403692559,1769485843749,-800.0,0.00015223,2]
[403692560,1769485843758,-800.0,0.00015299,2]
[403692561,1769485843767,-1237.981091,0.00015327,2]
[403692562,1769485843777,-160.889,0.00015342,2]
[403692563,1769485843786,-800.0,0.00015365,2]
[403692564,1769485843794,-261.4,0.0001539,3]
[403692565,1769485843804,-784.2,0.0001539,3]
[403692566,1769485843813,-337.41482397,0.00015391,2]
[403692567,1769485843822,-668.65185757,0.00015391,2]
[403692568,1769485843831,-201.93286099,0.00015391,2]
[403692569,1769485843840,-209.40437684,0.00015391,2]
[403692570,1769485843849,-217.15233878,0.00015391,2]
[403692571,1769485843858,-225.18697532,0.00015391,2]
[403692572,1769485843868,-233.51889341,0.00015391,2]
[403692573,1769485843877,-371.37125685,0.00015391,2]
[403692574,1769485843886,-278.45321826,0.00015399,2]
[403692575,1769485843895,-157.19404205,0.00015399,2]
[403692576,1769485843905,-500.0,0.00015399,2]
[403692577,1769485843914,-500.0,0.00015399,2]
[403692578,1769485843926,-500.0,0.00015399,2]
[403692579,1769485843937,-500.0,0.00015399,2]
[403692580,1769485843947,-518.94139039,0.00015399,2]
[403692581,1769485843958,-242052.43737451,0.000154,2]
[403692582,1769485843967,-763.5381713,0.000154,2]
[403692583,1769485843977,-246.05897713,0.0001554,2]
[403692584,1769485843986,-5000.0,0.0001564,2]
[403692585,1769485843996,-177.0,0.00015669,2]
[403692586,1769485844005,-154.01,0.00015893,2]
[403692587,1769485844014,-693.3919763,0.00015939,2]
[403692588,1769485844023,-625.63346864,0.00015949,2]
[403692589,1769485844032,-3000.0,0.00016,2]
[403692590,1769485844041,-3000.0,0.0001601,2]
[403692591,1769485844051,-150.331,0.00016012,2]
[403692592,1769485844060,-3000.0,0.0001602,2]
[403692593,1769485844068,-3000.0,0.0001603,2]
[403692594,1769485844078,-171.01311428,0.00016033,2]
[403692595,1769485844087,-3087.288307,0.0001604,2]
[403692596,1769485844097,-1128.81270793,0.0001621,2]
[403692597,1769485844106,-246.05897711,0.0001638,2]
[403692598,1769485844114,-250.0,0.00016438,2]
[403692599,1769485844123,-719.04747942,0.00016487,2]
[403692600,1769485844132,-1176.3,0.0001676,3]
[403692601,1769485844141,-784.2,0.0001676,3]
[403692602,1769485844150,-522.8,0.0001676,3]
[403692603,1769485844159,-315.74188307,0.00017035,2]
[403692604,1769485844169,-246.05897711,0.0001722,2]
[403692605,1769485844178,-1603.96419932,0.00017568,5]
[403692606,1769485844187,-204.0,0.00017669,2]
[403692607,1769485844196,-151.0,0.000179,2]
[403692608,1769485844205,-246.05897711,0.0001806,2]
[403692609,1769485844215,-2006.77814744,0.00018143,2]
[403692610,1769485844224,-321.0,0.00018211,2]
[403692611,1769485844233,-735.0,0.000184,2]
[403692612,1769485844243,-321.0,0.00018444,2]
[403692613,1769485844252,-436.834933,0.00018493,2]
[403692614,1769485844261,-151.0,0.000185,2]
[403692615,1769485844270,-168.0,0.00018535,2]
[403692616,1769485844279,-321.0,0.00018593,2]
[403692617,1769485844288,-151.0,0.000186,2]
[403692618,1769485844298,-194797.990655,0.000187,3]
[403692619,1769485844307,-487.0,0.000187,2]
[403692620,1769485844316,-487.0,0.000187,2]
[403692621,1769485844326,-487.0,0.000187,2]
[403692622,1769485844335,-487.0,0.000187,2]
[403692623,1769485844344,-487.0,0.000187,2]
[403692624,1769485844353,-487.0,0.000187,2]
[403692625,1769485844362,-487.0,0.000187,2]
[403692626,1769485844370,-487.0,0.000187,2]
[403692627,1769485844379,-487.0,0.000187,2]
[403692628,1769485844388,-487.0,0.000187,2]
[403692629,1769485844397,-487.0,0.000187,2]
[403692630,1769485844405,-487.0,0.000187,2]
[403692631,1769485844414,-487.0,0.000187,2]
[403692632,1769485844423,-487.0,0.000187,2]
[403692633,1769485844432,-487.0,0.000187,2]
[403692634,1769485844441,-487.0,0.000187,2]
[403692635,1769485844450,-487.0,0.000187,2]
[403692636,1769485844459,-487.0,0.000187,2]
[403692637,1769485844468,-487.0,0.000187,2]
[403692638,1769485844477,-487.0,0.000187,2]
[403692639,1769485844486,-487.0,0.000187,2]
[403692640,1769485844495,-554.18,0.000187,2]
[403692641,1769485844504,-228.009589,0.0001872,7]
[403692642,1769485844513,-5000.0,0.00018768,2]
[403692643,1769485844523,-151.0,0.00018768,2]
[403692644,1769485844532,-321.0,0.00018769,2]
[403692645,1769485844542,-168.0,0.00018792,2]
[403692646,1769485844551,-321.0,0.00018836,2]
[403692647,1769485844563,-321.0,0.00018858,2]
[403692648,1769485844573,-8115.22458107,0.000189,2]
[403692649,1769485844583,-246.05897711,0.000189,2]
[403692650,1769485844595,-303.10001603,0.000189,2]
[403692651,1769485844604,-303.10001603,0.000189,2]
[403692652,1769485844614,-3023.99,0.00018923,2]
[403692653,1769485844622,-729.0,0.00018995,2]
[403692654,1769485844631,-729.32835,0.00018995,7]
[403692655,1769485844642,-305947.4325268,0.00019,2]
[403692659,1769485846521,-154.54,0.00015146,2]
[403692661,1769485846686,-489.75390446,0.0001893,2]
[403692662,1769485846696,-86352.0565365,0.00019,2]
[403692665,1769486148920,500.0,0.00034611,120]
[403692666,1769486149164,500.0,0.00034611,120]
[403692667,1769486149399,500.82335798,0.00034611,120]
[403692670,1769486430155,502.76600839,0.00034544,120]
[403692671,1769486572930,500.0,0.00034544,120]
[403692672,1769486573205,500.0,0.00034544,120]
[403692673,1769486580859,500.0,0.00034544,120]
[403692674,1769486581091,500.0,0.00034544,120]
[403692675,1769486581334,500.0,0.00034544,120]
[403692676,1769486581604,500.0,0.00034544,120]
[403692677,1769486581914,500.0,0.00034544,120]
[403692678,1769486582149,285.96530758,0.00034544,120]
[403692679,1769486584240,537.85756021,0.00034544,120]
[403692680,1769486584482,500.0,0.00034544,120]
[403692681,1769486584618,500.0,0.00034544,120]
[403692682,1769486584867,500.0,0.00034544,120]
[403692683,1769486585140,500.0,0.00034544,120]
[403692684,1769486585391,500.0,0.00034544,120]
[403692689,1769486834124,12199.28971202,0.00034544,120]
[403692690,1769486835138,-150.0,0.000134,2]
[403692691,1769486835158,-500.73949909,0.00013434,2]
[403692692,1769486835179,-177.0,0.000154,2]
[403692693,1769486835198,-635.4521083,0.00015849,2]
[403692694,1769486835218,-150.0,0.00016,2]
[403692695,1769486835238,-203.757,0.00016353,2]
[403692696,1769486835258,-418.0,0.00016353,2]
[403692697,1769486835279,-179.0,0.00016353,2]
[403692698,1769486835299,-250.0,0.00016438,2]
[403692699,1769486835319,-705.50455796,0.00016589,2]
[403692700,1769486835339,-1000.0,0.00016616,5]
[403692701,1769486835359,-1374.85103839,0.00016871,2]
[403692721,1769487032354,-1480.80375372,0.00016641,2]
[403692722,1769487032365,-637.325,0.00016641,2]
[403692744,1769487038580,-1097.04316682,0.00016641,2]
[403692745,1769487038591,-1784.82807946,0.00016641,2]
[403692746,1769487038601,-1757.60422612,0.00016871,2]
[403692747,1769487038613,-150.0,0.00016909,2]
[403692748,1769487038624,-300.0,0.00016947,2]
[403692749,1769487038634,-300.0,0.00016947,2]
[403692751,1769487038646,-300.0,0.00016947,2]
[403692752,1769487038655,-300.0,0.00016947,2]
[403692753,1769487038666,-300.0,0.00016947,2]
[403692754,1769487038676,-300.0,0.00016947,2]
[403692755,1769487038686,-300.0,0.00016947,2]
[403692756,1769487038695,-300.0,0.00016947,2]
[403692757,1769487038705,-300.0,0.00016947,2]
[403692758,1769487038714,-300.0,0.00016947,2]
[403692759,1769487038723,-300.0,0.00016947,2]
[403692760,1769487038733,-300.0,0.00016947,2]
[403692761,1769487038743,-300.0,0.00016947,2]
[403692762,1769487038752,-300.0,0.00016947,2]
[403692763,1769487038766,-300.0,0.00016947,2]
[403692764,1769487038776,-1292.8861293,0.00017126,2]
[403692765,1769487038785,-600.0,0.00017285,2]
[403692766,1769487038795,-168.0,0.0001868,2]
[403692767,1769487038806,-258.4749253,0.00018891,2]
[403692768,1769487038815,-160.89,0.00018891,2]
[403692769,1769487038827,-7303.70212299,0.000189,2]
[403692770,1769487038836,-303.10001603,0.000189,2]
[403692771,1769487038846,-303.10001603,0.000189,2]
[403692772,1769487038855,-177.0,0.00018909,2]
[403692773,1769487038864,-2985.51,0.00018962,2]
[403692774,1769487038874,-500.0,0.00018989,2]
[403692775,1769487038887,-500.0,0.00018989,2]
[403692776,1769487038896,-500.0,0.00018989,2]
[403692777,1769487038906,-500.0,0.00018989,2]
[403692778,1769487038916,-500.0,0.00018989,2]
[403692779,1769487038925,-500.0,0.00018989,2]
[403692780,1769487038934,-500.0,0.00018989,2]
[403692781,1769487038943,-151.0,0.00018989,2]
[403692782,1769487038953,-500.0,0.00018989,2]
[403692783,1769487038962,-500.0,0.00018989,2]
[403692784,1769487038975,-500.0,0.00018989,2]
[403692785,1769487038985,-500.0,0.00018989,2]
[403692786,1769487038995,-500.0,0.00018989,2]
[403692787,1769487039007,-554.94384587,0.00018989,2]
[403692788,1769487039017,-154.97309606,0.00018989,2]
[403692789,1769487039026,-250.0,0.00018989,2]
[403692790,1769487039035,-250.0,0.00018989,2]
[403692791,1769487039045,-275.46863494,0.00018989,2]
[403692792,1769487039055,-5000.0,0.00018999,2]
[403692793,1769487039064,-194.91725278,0.00018999,2]
[403692794,1769487039073,-60008.91951258,0.00019,2]
[403692795,1769487039086,-1242.76212363,0.00019,2]
[403692838,1769487040634,-281.13849805,0.00019,2]
[403693009,1769487045049,-341.16770591,0.00019,2]
[403693010,1769487045062,-2674.60743027,0.00019,2]
[403693014,1769487046683,-2019.04249748,0.00019,2]
[403693015,1769487046739,-6091.91943658,0.00019,2]
[403693016,1769487046750,-1699.41678167,0.00019,2]
[403693039,1769487936095,-182.44755838,0.00015632,2]
[403693042,1769487996671,317.974,0.00034562,120]
[403693043,1769487996731,317.974,0.00034562,120]
[403693044,1769487996790,317.974,0.00034562,120]
[403693045,1769487996853,317.974,0.00034562,120]
[403693046,1769487996909,317.974,0.00034562,120]
[403693047,1769488037095,-1016.73910829,0.00015632,2]
[403693048,1769488037116,-150.0,0.00016087,2]
[403693049,1769488037135,-442.49322951,0.00016101,2]
[403693050,1769488046075,-226.15862806,0.00016101,2]
[403693051,1769488046095,-250.0,0.00016438,2]
[403693052,1769488046114,-338.58123174,0.00016649,2]
[403693077,1769488232544,-5000.0,0.00015246,2]
[403693078,1769488232553,-724.36608459,0.000154,2]
[403693080,1769488232564,-619.84912104,0.000154,2]
[403693082,1769488232575,-457.4996875,0.000154,2]
[403693086,1769488232603,-1503.60681349,0.000154,2]
[403693088,1769488232614,-1692.44809548,0.000154,2]
[403693111,1769488238652,-3021.62025626,0.00015246,2]
[403693115,1769488238859,-530.78060209,0.00015246,2]
[403693170,1769488240896,-1447.59914165,0.00015246,2]
[403693172,1769488240908,-51608.96177667,0.000154,2]
[403693174,1769488240919,-300.0,0.00015707,2]
[403693176,1769488240929,-300.0,0.00015707,2]
[403693179,1769488240941,-300.0,0.00015707,2]
[403693181,1769488240952,-300.0,0.00015707,2]
[403693183,1769488240963,-300.0,0.00015707,2]
[403693185,1769488240973,-300.0,0.00015707,2]
[403693187,1769488240983,-300.0,0.00015707,2]
[403693190,1769488240995,-300.0,0.00015707,2]
[403693192,1769488241006,-300.0,0.00015707,2]
[403693194,1769488241018,-300.0,0.00015707,2]
[403693196,1769488241029,-300.0,0.00015707,2]
[403693198,1769488241041,-300.0,0.00015707,2]
[403693200,1769488241052,-300.0,0.00015707,2]
[403693202,1769488241062,-300.0,0.00015707,2]
[403693204,1769488241072,-300.0,0.00015707,2]
[403693207,1769488241085,-600.0,0.00015707,2]
[403693209,1769488241097,-435.55873551,0.00015884,2]
[403693211,1769488241107,-150.0,0.00016267,2]
[403693213,1769488241118,-179.0,0.00016713,2]
[403693216,1769488241130,-374.691,0.00016713,2]
[403693218,1769488241141,-10381.1862243,0.00016988,2]
[403693220,1769488241152,-720.0,0.00017278,2]
[403693222,1769488241163,-729.0,0.00017906,2]
[403693224,1769488241175,-1317.4918621,0.00017972,2]
[403693227,1769488241187,-1000.0,0.00018116,2]
[403693229,1769488241199,-735.0,0.00018218,2]
[403693231,1769488241211,-177.0,0.00018267,2]
[403693233,1769488241222,-168.0,0.00018428,2]
[403693236,1769488241234,-168.0,0.0001851,2]
[403693238,1769488241245,-168.0,0.0001858,2]
[403693240,1769488241257,-246.05897713,0.000186,2]
[403693242,1769488241268,-168.0,0.00018603,2]
[403693244,1769488241278,-800.0,0.00018612,2]
[403693246,1769488241287,-800.0,0.00018634,2]
[403693248,1769488241297,-246.05897711,0.00018675,2]
[403693250,1769488241307,-168.0,0.00018681,2]
[403693252,1769488241316,-720.94824948,0.00018688,2]
[403693254,1769488241326,-413.88,0.0001869,3]
[403693257,1769488241337,-413.88,0.0001869,3]
[403693259,1769488241348,-160.89,0.00018699,2]
[403693261,1769488241360,-405.12526597,0.000187,2]
[403693263,1769488241370,-194797.990655,0.000187,3]
[403693265,1769488241382,-168.0,0.00018704,2]
[403693268,1769488241392,-500.0,0.00018716,3]
[403693270,1769488241405,-168.0,0.0001874,2]
[403693272,1769488241415,-800.0,0.00018747,2]
[403693274,1769488241425,-246.05897711,0.0001875,2]
[403693276,1769488241436,-800.0,0.00018755,2]
[403693279,1769488241447,-800.0,0.00018805,2]
[403693281,1769488241463,-246.05897711,0.00018825,2]
[403693284,1769488241476,-800.0,0.00018827,2]
[403693286,1769488241486,-800.0,0.00018828,2]
[403693288,1769488241497,-500.0,0.00018853,3]
[403693290,1769488241512,-168.0,0.00018862,2]
[403693292,1769488241523,-2986.0,0.00018898,2]
[403693295,1769488241533,-246.05897711,0.000189,2]
[403693297,1769488241544,-303.10001603,0.000189,2]
[403693299,1769488241554,-303.10001603,0.000189,2]
[403693301,1769488241565,-805.0,0.00018928,2]
[403693303,1769488241575,-415.80189767,0.0001899,3]
[403693305,1769488241587,-603181.4895361,0.00019,2]
[403693498,1769488246858,-5000.0,0.00018699,2]
[403693499,1769488246868,-33545.76241763,0.00019,2]
[403693503,1769488306048,500.0,0.00034562,120]
[403693504,1769488318696,500.0,0.00034562,120]
[403693505,1769488324845,500.0,0.00034562,120]
[403693506,1769488330279,500.0,0.00034562,120]
[403693507,1769488335261,500.0,0.00034542,120]
[403693508,1769488337218,500.0,0.00034542,120]
[403693509,1769488340717,500.0,0.00034542,120]
[403693510,1769488341097,500.0,0.00034542,120]
[403693511,1769488349802,500.0,0.00034542,120]
[403693512,1769488351878,500.0,0.00034542,120]
[403693513,1769488352672,523.30791494,0.00034542,120]
[403693514,1769488358444,500.0,0.00034542,120]
[403693515,1769488358844,500.0,0.00034542,120]
[403693516,1769488360881,500.0,0.00034542,120]
[403693517,1769488364424,500.0,0.00034542,120]
[403693518,1769488370990,500.0,0.00034542,120]
[403693519,1769488373093,500.0,0.00034542,120]
[403693520,1769488376423,521.48622801,0.00034542,120]
[403693521,1769488377753,500.0,0.00034542,120]
[403693522,1769488380393,500.0,0.00034542,120]
[403693523,1769488380458,500.0,0.00034542,120]
[403693524,1769488381164,500.0,0.00034542,120]
[403693525,1769488382085,501.59629355,0.00034542,120]
[403693526,1769488384003,500.0,0.00034542,120]
[403693527,1769488384259,553.41232711,0.00034542,120]
[403693528,1769488387513,500.0,0.00034542,120]
[403693529,1769488389636,500.0,0.00034542,120]
[403693530,1769488391366,500.0,0.00034542,120]
[403693531,1769488391554,500.0,0.00034542,120]
[403693532,1769488392422,500.0,0.00034542,120]
[403693533,1769488395417,500.0,0.00034542,120]
[403693534,1769488396307,500.0,0.00034542,120]
[403693535,1769488397339,333.11294215,0.00034542,120]
[403693536,1769488401327,500.000001,0.00034542,120]
[403693537,1769488403947,500.0,0.00034542,120]
[403693538,1769488405163,500.0,0.00034542,120]
[403693539,1769488405342,500.0,0.00034542,120]
[403693540,1769488405452,500.0,0.00034542,120]
[403693541,1769488405712,296.46,0.00034542,120]
[403693542,1769488407296,500.0,0.00034542,120]
[403693543,1769488407929,500.0,0.00034542,120]
[403693544,1769488408474,500.0,0.00034542,120]
[403693545,1769488410669,500.0,0.00034542,120]
[403693546,1769488410914,255.96100741,0.00034542,120]
[403693547,1769488412027,541.37382507,0.00034542,120]
[403693548,1769488413730,500.0,0.00034542,120]
[403693549,1769488413977,299.76,0.00034542,120]
[403693550,1769488416220,500.0,0.00034542,120]
[403693551,1769488416270,502.26560138,0.00034542,120]
[403693552,1769488420616,500.0,0.00034542,120]
[403693553,1769488420720,500.0,0.00034542,120]
[403693554,1769488424021,500.0,0.00034542,120]
[403693555,1769488425925,500.0,0.00034542,120]
[403693556,1769488427530,500.0,0.00034542,120]
[403693557,1769488427736,500.0,0.00034542,120]
[403693558,1769488428345,500.0,0.00034542,120]
[403693559,1769488428621,304.9,0.00034542,120]
[403693560,1769488428799,500.0,0.00034542,120]
[403693561,1769488432670,500.0,0.00034542,120]
[403693562,1769488436505,500.0,0.00034542,120]
[403693563,1769488439307,500.0,0.00034542,120]
[403693564,1769488439836,500.0,0.00034542,120]
[403693565,1769488445979,502.62098711,0.00034542,120]
[403693566,1769488458537,500.0,0.00034542,120]
[403693567,1769488460417,334.58644047,0.00034542,120]
[403693568,1769488465777,500.0,0.00034542,120]
[403693569,1769488466881,173.26555964,0.00034542,120]
[403693570,1769488469839,500.0,0.00034542,120]
[403693571,1769488476838,500.0,0.00034542,120]
[403693572,1769488486811,500.0,0.00034542,120]
[403693573,1769488490851,505.41,0.00034542,120]
[403693574,1769488495270,500.0,0.00034542,120]
[403693575,1769488503179,500.0,0.00034542,120]
[403693576,1769488503526,500.0,0.00034542,120]
[403693577,1769488504753,500.0,0.00034542,120]
[403693578,1769488504857,500.0,0.00034542,120]
[403693579,1769488513469,500.0,0.00034542,120]
[403693580,1769488514589,514.95997508,0.00034542,120]
[403693581,1769488517447,500.0,0.00034542,120]
[403693582,1769488519413,500.0,0.00034542,120]
[403693583,1769488522630,500.0,0.00034542,120]
[403693584,1769488523875,500.0,0.00034542,120]
[403693585,1769488524115,504.26,0.00034542,120]
[403693586,1769488528720,500.0,0.00034542,120]
[403693587,1769488532246,500.0,0.00034542,120]
[403693588,1769488538444,500.0,0.00034542,120]
[403693589,1769488540215,500.0,0.00034542,120]
[403693590,1769488541052,500.0,0.00034542,120]
[403693591,1769488543547,500.0,0.00034542,120]
[403693592,1769488545381,500.0,0.00034542,120]
[403693593,1769488547519,352.42587705,0.00034542,120]
[403693594,1769488550794,500.0,0.00034542,120]
[403693595,1769488551036,359.58,0.00034542,120]
[403693596,1769488555119,500.0,0.00034542,120]
[403693597,1769488556350,500.0,0.00034542,120]
[403693598,1769488556528,492.98,0.00034542,120]
[403693599,1769488563862,500.0,0.00034542,120]
[403693600,1769488572653,500.0,0.00034542,120]
[403693601,1769488573799,500.0,0.00034542,120]
[403693602,1769488583359,500.0,0.00034542,120]
[403693603,1769488585266,500.0,0.00034542,120]
[403693604,1769488586381,500.0,0.00034542,120]
[403693605,1769488589494,500.0,0.00034542,120]
[403693606,1769488590293,396.34179232,0.00034542,120]
[403693607,1769488593245,522.00246569,0.00034542,120]
[403693608,1769488595148,500.0,0.00034542,120]
[403693609,1769488596425,500.0,0.00034542,120]
[403693610,1769488599433,500.0,0.00034542,120]
[403693611,1769488601714,500.0,0.00034542,120]
[403693612,1769488604696,500.0,0.00034542,120]
[403693613,1769488607977,500.0,0.00034542,120]
[403693614,1769488608965,500.0,0.00034542,120]
[403693615,1769488610779,500.0,0.00034542,120]
[403693616,1769488611820,500.0,0.00034542,120]
[403693617,1769488612813,500.0,0.00034542,120]
[403693618,1769488613661,500.0,0.00034542,120]
[403693619,1769488614423,500.0,0.00034542,120]
[403693620,1769488619449,500.0,0.00034542,120]
[403693621,1769488624942,500.0,0.00034542,120]
[403693622,1769488631360,500.0,0.00034542,120]
[403693623,1769488632845,500.0,0.00034542,120]
[403693624,1769488633176,499.99999997,0.00034542,120]
[403693625,1769488637205,500.0,0.00034542,120]
[403693626,1769488638506,500.0,0.00034542,120]
[403693629,1769488645252,500.0,0.00034542,120]
[403693630,1769488645780,500.0,0.00034542,120]
[403693631,1769488646035,249.24,0.00034542,120]
[403693632,1769488650829,500.0,0.00034542,120]
[403693633,1769488653845,500.0,0.00034542,120]
[403693634,1769488656413,500.0,0.00034542,120]
[403693635,1769488657444,500.0,0.00034542,120]
[403693636,1769488659052,500.0,0.00034542,120]
[403693637,1769488659898,365.75977781,0.00034542,120]
[403693638,1769488661019,500.0,0.00034542,120]
[403693639,1769488663849,500.0,0.00034542,120]
[403693640,1769488667699,500.0,0.00034542,120]
[403693641,1769488671252,500.0,0.00034542,120]
[403693642,1769488672797,500.0,0.00034542,120]
[403693643,1769488673083,500.0,0.00034542,120]
[403693644,1769488677335,500.0,0.00034542,120]
[403693645,1769488691724,500.0,0.00034542,120]
[403693646,1769488696663,500.0,0.00034542,120]
[403693647,1769488713729,500.0,0.00034542,120]
[403693648,1769488722183,500.0,0.00034542,120]
[403693649,1769488730366,500.0,0.00034542,120]
[403693650,1769488732581,509.20229072,0.00034542,120]
[403693651,1769488734681,500.0,0.00034542,120]
[403693652,1769488738833,500.94985366,0.00034542,120]
[403693653,1769488745775,500.0,0.00034542,120]
[403693655,1769488784282,500.0,0.00034542,120]
[403693656,1769488792593,500.0,0.00034606,120]
[403693657,1769488817782,500.0,0.00034606,120]
[403693658,1769488834291,500.0,0.00034606,120]
[403693659,1769488862808,500.0,0.00034606,120]
[403693660,1769488862869,500.0,0.00034606,120]
[403693661,1769488873553,500.0,0.00034606,120]
[403693665,1769488888987,500.0,0.00034606,120]
[403693666,1769488890834,500.0,0.00034606,120]
[403693668,1769488892269,500.0,0.00034606,120]
[403693670,1769488896023,500.0,0.00034606,120]
[403693671,1769488904376,500.0,0.00034606,120]
[403693672,1769488909817,500.0,0.00034606,120]
[403693673,1769488936649,500.0,0.00034606,120]
[403693674,1769488938644,577.88926231,0.00034606,120]
[403693680,1769488948887,500.0,0.00034606,120]
[403693684,1769488954394,256.0,0.0003,120]
[403693686,1769488962201,501.59447891,0.00034606,120]
[403693688,1769488992514,500.0,0.00034606,120]
[403693689,1769488995902,598.5,0.00034606,120]
[403693690,1769488995959,550.5,0.00034606,120]
[403693691,1769489065360,500.95938896,0.00034606,120]
[403693709,1769489153906,500.0,0.00034606,120]
[403693718,1769489211359,154.875748,0.00034606,120]
[403693719,1769489226906,508.96790042,0.00034606,120]
[403693720,1769489234115,-365.78800948,0.00013699,2]
[403693721,1769489234140,-473.83481485,0.00015364,2]
[403693722,1769489234163,-104.38669729,0.0001542,2]
[403693726,1769489247090,-45.61330271,0.0001542,2]
[403693727,1769489247114,-115.30993107,0.00015705,2]
[403693742,1769489322174,500.0,0.00034606,120]
[403693744,1769489322421,500.0,0.00034606,120]
[403693747,1769489322603,500.0,0.00034606,120]
[403693748,1769489322678,500.0,0.00034606,120]
[403693749,1769489322851,500.0,0.00034606,120]
[403693750,1769489322922,500.0,0.00034606,120]
[403693806,1769489431737,-300.0,0.00015705,2]
[403693807,1769489431747,-463.0,0.00015705,2]
[403693808,1769489431756,-15.48675578,0.00015706,2]
[403693809,1769489431768,-134.51324422,0.00015706,2]
[403693810,1769489431778,-300.0,0.00015706,2]
[403693811,1769489431793,-300.0,0.00015706,2]
[403693812,1769489431804,-243.59324978,0.00015706,2]
[403693815,1769489431815,-56.40675022,0.00015706,2]
[403693817,1769489431825,-300.0,0.00015706,2]
[403693819,1769489431834,-215.15219904,0.00015706,2]
[403693820,1769489431846,-84.84780096,0.00015706,2]
[403693821,1769489431856,-300.0,0.00015706,2]
[403693822,1769489431866,-300.0,0.00015706,2]
[403693823,1769489431875,-300.0,0.00015706,2]
[403693824,1769489431885,-300.0,0.00015706,2]
[403693825,1769489431894,-300.0,0.00015706,2]
[403693826,1769489431903,-300.0,0.00015706,2]
[403693827,1769489431913,-300.0,0.00015706,2]
[403693828,1769489431923,-300.0,0.00015706,2]
[403693829,1769489431933,-300.0,0.00015706,2]
[403693830,1769489431943,-300.0,0.00015706,2]
[403693831,1769489431952,-600.0,0.00016019,2]
[403693832,1769489431962,-250.0,0.00016438,2]
[403693833,1769489431976,-1292.8861293,0.00016835,2]
[403693834,1769489431986,-298.92,0.000169,2]
[403693835,1769489431995,-179.0,0.00017073,2]
[403693836,1769489432005,-154.0,0.00017176,2]
[403693837,1769489432014,-911.94618848,0.00017282,5]
[403693838,1769489432024,-155.0,0.00017293,2]
[403693839,1769489432034,-349.467946,0.00017294,2]
[403693840,1769489432046,-445.48564701,0.00017516,2]
[403693841,1769489432056,-151.0,0.00017516,2]